bitfinex/quotes_BTCUSD_20250623
["timestamp","ask_amount","ask_price","bid_price","bid_amount"]
[1750644576674,0.75627263,101250.0,101240.0,0.0346]
[1750644576882,0.75627263,101250.0,101240.0,0.002]
[1750644576883,0.7958073,101250.0,101240.0,0.002]
[1750644578173,0.50575318,101250.0,101240.0,0.002]
[1750644578384,0.7958073,101250.0,101240.0,0.002]
[1750644579729,0.81430793,101250.0,101240.0,0.0351]
[1750644580512,0.77477326,101250.0,101240.0,0.0351]
[1750644581045,0.76783761,101250.0,101240.0,0.0351]
[1750644581239,0.7840365,101250.0,101240.0,0.0351]
[1750644581544,0.78407988,101250.0,101240.0,0.0351]
[1750644582492,0.46202576,101250.0,101240.0,0.0351]
[1750644582740,0.46085576,101250.0,101240.0,0.0351]
[1750644582951,0.46085576,101250.0,101240.0,0.06635]
[1750644583153,0.4313583,101250.0,101240.0,0.06635]
[1750644584195,0.72255242,101250.0,101240.0,0.0351]
[1750644584401,0.72255178,101250.0,101240.0,0.0351]
[1750644584604,0.75515178,101250.0,101240.0,0.0351]
[1750644586869,0.73662257,101250.0,101240.0,0.0351]
[1750644587072,0.72735797,101250.0,101240.0,0.0351]
[1750644587281,0.73662263,101250.0,101240.0,0.0351]
[1750644588523,0.73662322,101250.0,101240.0,0.0351]
[1750644589467,0.71302429,101250.0,101240.0,0.0351]
[1750644589984,0.71302513,101250.0,101240.0,0.0351]
[1750644590932,1.07563503,101250.0,101240.0,0.002]
[1750644591344,1.07563747,101250.0,101240.0,0.002]
[1750644591772,0.75528502,101250.0,101240.0,0.002]
[1750644592378,0.73156335,101250.0,101240.0,0.002]
[1750644593713,0.69782335,101250.0,101240.0,0.0337]
[1750644593929,0.38923345,101250.0,101240.0,0.0337]
[1750644594143,0.38228436,101250.0,101240.0,0.074635]
[1750644594357,0.38228436,101250.0,101240.0,0.073485]
[1750644594565,0.38228436,101250.0,101240.0,0.074635]
[1750644595204,0.38228436,101250.0,101240.0,0.06785]
[1750644596570,0.67233848,101250.0,101240.0,0.06785]
[1750644598196,0.38228436,101250.0,101240.0,0.06785]
[1750644598917,0.37301647,101250.0,101240.0,0.06785]
[1750644599122,0.38228548,101250.0,101240.0,0.06785]
[1750644600517,0.38228563,101250.0,101240.0,0.06785]
[1750644600937,0.37301647,101250.0,101240.0,0.0667]
[1750644601123,0.37301647,101250.0,101240.0,0.36468912]
[1750644601355,0.37301647,101250.0,101240.0,0.06785]
[1750644601558,0.37301647,101250.0,101240.0,0.0667]
[1750644601761,0.38228694,101250.0,101240.0,0.06785]
[1750644602604,0.37301647,101250.0,101240.0,0.06785]
[1750644603016,0.33804462,101250.0,101240.0,0.06785]
[1750644603233,0.45134412,101260.0,101240.0,0.074635]
[1750644603444,0.4675662,101260.0,101250.0,0.0332]
[1750644603655,0.3074662,101260.0,101250.0,0.0332]
[1750644604314,0.3392662,101260.0,101250.0,0.0332]
[1750644605152,0.00114,101250.0,101240.0,0.03]
[1750644605364,0.29119412,101250.0,101240.0,0.03]
[1750644605782,0.32553085,101250.0,101240.0,0.03]
[1750644606194,0.35649085,101250.0,101240.0,0.03]
[1750644606394,0.35763085,101250.0,101240.0,0.03]
[1750644606630,0.35763085,101250.0,101240.0,0.031]
[1750644606843,0.35649085,101250.0,101240.0,0.031]
[1750644607101,0.36689909,101250.0,101240.0,0.031]
[1750644607326,0.36689909,101250.0,101240.0,0.001]
[1750644607616,0.70689909,101250.0,101240.0,0.001]
[1750644608026,0.70689909,101250.0,101240.0,0.0322]
[1750644608449,0.70689909,101250.0,101240.0,0.002]
[1750644608860,0.86813909,101250.0,101240.0,0.0346]
[1750644609270,0.52813909,101250.0,101240.0,0.0346]
[1750644609556,0.52813898,101250.0,101240.0,0.002]
[1750644609980,0.52813898,101250.0,101240.0,0.034]
[1750644610832,0.36689898,101250.0,101240.0,0.034]
[1750644611920,0.04360486,101250.0,101240.0,0.034]
[1750644612122,0.03433673,101250.0,101240.0,0.06665]
[1750644612535,0.82488412,101260.0,101250.0,0.0309]
[1750644612745,0.8596378,101260.0,101250.0,0.0309]
[1750644613177,0.8596378,101260.0,101240.0,0.039565]
[1750644613373,0.00115,101250.0,101240.0,0.0319]
[1750644613587,0.01041765,101250.0,101240.0,0.0319]
[1750644613798,0.04505033,101250.0,101240.0,0.0319]
[1750644614014,0.00115,101250.0,101240.0,0.0319]
[1750644614438,0.79234412,101260.0,101240.0,0.0309]
[1750644614654,0.66360412,101250.0,101240.0,0.0309]
[1750644615319,0.63005412,101250.0,101240.0,0.0309]
[1750644615532,0.63005412,101250.0,101240.0,0.0319]
[1750644615533,0.691006,101250.0,101240.0,0.0319]
[1750644615976,0.659006,101250.0,101240.0,0.0319]
[1750644616184,0.65900699,101250.0,101240.0,0.0319]
[1750644616390,0.63120412,101250.0,101240.0,0.0319]
[1750644617259,0.34,101250.0,101240.0,0.03308]
[1750644617476,0.37447073,101250.0,101240.0,0.09891916]
[1750644617708,0.37447073,101250.0,101240.0,0.06438]
[1750644617929,0.66452485,101250.0,101240.0,0.0319]
[1750644618140,0.69232709,101250.0,101240.0,0.0329]
[1750644618351,0.69232579,101250.0,101240.0,0.0329]
[1750644618564,0.66567485,101250.0,101240.0,0.0329]
[1750644618781,0.69347667,101250.0,101240.0,0.0329]
[1750644619234,0.66567485,101250.0,101240.0,0.0329]
[1750644619686,0.6934766,101250.0,101240.0,0.0329]
[1750644619899,0.66567485,101250.0,101240.0,0.0329]
[1750644621897,0.37562073,101250.0,101240.0,0.06747916]
[1750644622112,0.37447073,101250.0,101240.0,0.06608]
[1750644622538,0.34,101250.0,101240.0,0.06608]
[1750644622762,0.34,101250.0,101240.0,0.35860333]
[1750644622991,5e-05,101260.0,101250.0,0.06488]
[1750644623211,5e-05,101260.0,101250.0,0.67103915]
[1750644623420,5e-05,101260.0,101250.0,1.00453327]
[1750644625122,0.00105,101260.0,101250.0,1.00453327]
[1750644625334,0.00105,101260.0,101250.0,1.00953327]
[1750644625557,5e-05,101260.0,101250.0,1.00453327]
[1750644625762,5e-05,101260.0,101250.0,1.01653327]
[1750644625972,5e-05,101260.0,101250.0,1.13137351]
[1750644632025,5e-05,101260.0,101250.0,1.13542351]
[1750644633596,5e-05,101260.0,101250.0,1.18542351]
[1750644634020,5e-05,101260.0,101250.0,1.67932351]
[1750644634864,5e-05,101260.0,101250.0,2.01932351]
[1750644635480,0.00405,101270.0,101260.0,0.28036162]
[1750644635693,0.00418887,101270.0,101260.0,0.99619452]
[1750644636125,0.00418887,101270.0,101260.0,0.73469513]
[1750644636343,0.00418887,101270.0,101260.0,0.95379598]
[1750644636559,0.00418887,101270.0,101260.0,0.73469513]
[1750644636776,0.00418887,101270.0,101260.0,0.93925513]
[1750644636999,0.00418887,101270.0,101260.0,0.94425513]
[1750644637932,0.00418887,101270.0,101260.0,0.94725513]
[1750644639283,0.00418887,101270.0,101260.0,0.98323525]
[1750644639528,0.32185412,101300.0,101270.0,0.00118]
[1750644639765,0.32185412,101300.0,101270.0,0.50400162]
[1750644640019,0.32185412,101300.0,101270.0,0.60217115]
[1750644640860,0.32285412,101300.0,101270.0,0.60217115]
[1750644641521,0.32375412,101300.0,101270.0,0.60099115]
[1750644641729,0.29095412,101280.0,101270.0,0.28036162]
[1750644641946,0.32285412,101280.0,101270.0,0.28036162]
[1750644642394,0.35315412,101280.0,101270.0,0.28036162]
[1750644643250,0.32125412,101280.0,101270.0,0.28336162]
[1750644643680,0.32125412,101280.0,101270.0,0.003]
[1750644644095,0.32125412,101280.0,101270.0,0.005]
[1750644646894,0.32035412,101280.0,101270.0,0.005]
[1750644647111,0.51441412,101290.0,101270.0,0.0373]
[1750644647322,0.54209105,101290.0,101270.0,0.09819357]
[1750644647751,0.38093105,101290.0,101270.0,0.09819357]
[1750644647956,0.34903105,101290.0,101270.0,0.09819357]
[1750644648165,0.34903105,101290.0,101270.0,0.09619357]
[1750644648371,0.34903105,101290.0,101270.0,0.09719357]
[1750644648579,0.34903105,101290.0,101270.0,0.0333]
[1750644649248,0.34904437,101290.0,101270.0,0.0333]
[1750644649663,0.34904437,101290.0,101270.0,0.31366162]
[1750644649871,0.32135412,101290.0,101270.0,0.31366162]
[1750644650089,0.34905102,101290.0,101270.0,0.31366162]
[1750644650727,0.34905102,101290.0,101270.0,0.31488162]
[1750644651145,0.34905102,101290.0,101270.0,0.34498162]
[1750644652390,0.34905102,101290.0,101270.0,0.37985888]
[1750644652802,0.35599282,101290.0,101270.0,0.37863888]
[1750644653002,0.35599282,101290.0,101270.0,0.06817726]
[1750644653624,0.51717716,101290.0,101270.0,0.06817726]
[1750644654084,0.51717716,101290.0,101270.0,0.0333]
[1750644654320,0.51023497,101290.0,101270.0,0.0333]
[1750644655823,0.51028252,101290.0,101270.0,0.0333]
[1750644656665,0.34912252,101290.0,101270.0,0.0333]
[1750644656881,0.51028252,101290.0,101270.0,0.0333]
[1750644657082,0.51028252,101290.0,101270.0,0.039992]
[1750644657568,0.33061025,101290.0,101270.0,0.071812]
[1750644657796,0.02776797,101290.0,101280.0,0.0632]
[1750644658008,0.02776797,101290.0,101280.0,0.06442]
[1750644658656,0.01851198,101290.0,101280.0,0.06442]
[1750644658874,0.02776784,101290.0,101280.0,0.12108861]
[1750644659158,0.03721784,101300.0,101290.0,0.0632]
[1750644659389,0.06498117,101300.0,101290.0,0.06442]
[1750644659623,0.02785475,101300.0,101290.0,0.06442]
[1750644659860,0.3114358,101340.0,101310.0,0.0314]
[1750644660110,0.54378429,101340.0,101320.0,0.00122]
[1750644660347,0.38352429,101340.0,101320.0,0.03262]
[1750644660582,0.34,101330.0,101320.0,0.06142]
[1750644660823,0.01849713,101330.0,101320.0,0.06142]
[1750644661568,0.01849307,101330.0,101320.0,0.06142]
[1750644661811,0.01849307,101330.0,101320.0,0.080712]
[1750644662046,0.01849307,101330.0,101320.0,0.06142]
[1750644662281,0.01972307,101330.0,101320.0,0.06142]
[1750644662517,0.01972307,101330.0,101310.0,0.16116]
[1750644662518,0.30977719,101330.0,101310.0,0.16116]
[1750644662755,0.29005412,101320.0,101300.0,0.04336]
[1750644662971,0.29128412,101310.0,101300.0,0.0308]
[1750644663399,0.00123,101310.0,101300.0,0.0308]
[1750644663610,0.00123,101310.0,101300.0,0.0622]
[1750644664231,0.23054549,101330.0,101300.0,0.0622]
[1750644664232,0.29005412,101320.0,101300.0,0.0622]
[1750644664442,0.30975017,101320.0,101300.0,0.0622]
[1750644664864,0.30975017,101320.0,101300.0,0.0632]
[1750644665302,0.30975017,101320.0,101300.0,0.0662]
[1750644665528,0.30975017,101320.0,101300.0,0.0632]
[1750644666044,0.30975017,101320.0,101300.0,0.0642]
[1750644666703,0.30974039,101320.0,101300.0,0.0632]
[1750644667350,0.01845627,101320.0,101310.0,0.0635]
[1750644667565,0.00123,101320.0,101310.0,0.0635]
[1750644667771,0.30973144,101320.0,101310.0,0.0635]
[1750644668007,0.30973144,101320.0,101310.0,0.0304]
[1750644668427,0.30973144,101320.0,101300.0,0.0647]
[1750644668644,0.29128412,101310.0,101300.0,0.0311]
[1750644669944,0.29128412,101310.0,101300.0,0.0351]
[1750644670382,0.29128412,101310.0,101300.0,0.004]
[1750644671013,0.29128412,101310.0,101300.0,0.006]
[1750644675710,0.29128412,101310.0,101300.0,0.0684]
[1750644675922,0.29128412,101310.0,101300.0,0.0368]
[1750644676340,0.29128412,101310.0,101300.0,0.006]
[1750644676755,0.29128412,101310.0,101300.0,0.0718]
[1750644676976,0.30051653,101310.0,101300.0,0.0718]
[1750644677958,0.07615474,101310.0,101300.0,0.0718]
[1750644678163,0.63005412,101320.0,101300.0,0.0718]
[1750644678394,0.65775943,101320.0,101300.0,0.08052479]
[1750644678653,0.65775943,101320.0,101300.0,0.04732479]
[1750644678903,0.65775943,101320.0,101300.0,0.07752479]
[1750644679151,0.64852433,101320.0,101310.0,0.0302]
[1750644679396,0.65775932,101320.0,101310.0,0.03795248]
[1750644679844,0.65775932,101320.0,101310.0,0.06845248]
[1750644680061,0.3677052,101320.0,101310.0,0.0607]
[1750644680275,0.65775932,101320.0,101310.0,0.06188]
[1750644680494,0.63928911,101320.0,101310.0,0.06188]
[1750644680702,0.63928911,101320.0,101310.0,0.0607]
[1750644680909,0.63928911,101320.0,101310.0,0.06188]
[1750644681127,0.63928911,101320.0,101310.0,0.06288]
[1750644681546,0.63928911,101320.0,101310.0,0.0617]
[1750644683041,0.65777418,101320.0,101310.0,0.0617]
[1750644683243,0.36772006,101320.0,101310.0,0.0617]
[1750644684871,0.36772128,101320.0,101310.0,0.0617]
[1750644686015,0.36772128,101320.0,101310.0,0.06288]
[1750644690479,0.02772128,101320.0,101310.0,0.06288]
[1750644690696,0.02774436,101320.0,101310.0,0.06288]
[1750644691404,0.02774436,101320.0,101310.0,0.06534738]
[1750644692260,0.02774436,101320.0,101310.0,0.06288]
[1750644692698,0.02774436,101320.0,101310.0,0.11503989]
[1750644692908,0.02774436,101320.0,101310.0,0.06288]
[1750644693544,0.02778453,101320.0,101310.0,0.06534739]
[1750644693766,0.00926151,101320.0,101310.0,0.35540151]
[1750644693972,0.00926151,101320.0,101310.0,0.35293412]
[1750644694185,0.00926151,101320.0,101310.0,0.40942601]
[1750644695260,0.00926151,101320.0,101310.0,0.35293412]
[1750644695728,0.33070159,101340.0,101320.0,0.0632]
[1750644695986,0.365421,101340.0,101330.0,0.0632]
[1750644696427,0.36541411,101340.0,101330.0,0.0632]
[1750644697355,0.07835999,101340.0,101330.0,0.0632]
[1750644697805,0.07141906,101340.0,101330.0,0.0632]
[1750644698756,0.07441906,101340.0,101330.0,0.0632]
[1750644698954,0.37141076,101340.0,101330.0,0.0307]
[1750644699125,0.36147318,101340.0,101320.0,0.03298]
[1750644699349,0.36930061,101340.0,101320.0,0.06418]
[1750644699553,0.37230061,101340.0,101320.0,0.06418]
[1750644700030,0.36630061,101340.0,101320.0,0.06418]
[1750644700238,0.39680061,101340.0,101320.0,0.06418]
[1750644700455,0.43654326,101340.0,101320.0,0.06418]
[1750644700669,0.40280061,101340.0,101320.0,0.06418]
[1750644701543,0.29005412,101330.0,101310.0,0.22368]
[1750644701761,0.29005412,101320.0,101310.0,0.0626]
[1750644701975,0.29930232,101320.0,101310.0,0.0626]
[1750644702185,0.29930232,101320.0,101310.0,0.06378]
[1750644702401,0.0092482,101320.0,101310.0,0.06378]
[1750644703307,0.0092482,101320.0,101310.0,0.06478]
[1750644703524,0.0092482,101320.0,101310.0,0.0636]
[1750644704410,0.29930232,101320.0,101310.0,0.0636]
[1750644705593,0.29930487,101320.0,101310.0,0.0636]
[1750644706008,0.29930487,101320.0,101310.0,0.0335]
[1750644706475,0.29930487,101320.0,101310.0,0.0645]
[1750644707783,0.29930487,101320.0,101310.0,0.0335]
[1750644707957,0.33059487,101320.0,101310.0,0.001]
[1750644708160,0.35419487,101320.0,101310.0,0.001]
[1750644709594,0.34494412,101320.0,101310.0,0.001]
[1750644709801,0.32134412,101320.0,101310.0,0.001]
[1750644710014,0.29005412,101320.0,101310.0,0.001]
[1750644710282,0.29005412,101320.0,101310.0,0.0313]
[1750644710466,0.29094412,101320.0,101310.0,0.001]
[1750644711756,0.29005412,101320.0,101310.0,0.0625]
[1750644712851,0.29005412,101320.0,101310.0,0.0313]
[1750644714639,0.29094412,101320.0,101310.0,0.001]
[1750644717978,0.31870306,101320.0,101310.0,0.001]
[1750644720044,0.31870138,101320.0,101310.0,0.001]
[1750644720516,0.31870138,101320.0,101310.0,0.031]
[1750644720766,0.31781138,101320.0,101310.0,0.031]
[1750644720959,0.31781138,101320.0,101310.0,0.0641]
[1750644722111,0.31781138,101320.0,101310.0,0.031]
[1750644724022,0.31870138,101320.0,101310.0,0.031]
[1750644725204,0.30855896,101320.0,101310.0,0.0631]
[1750644725400,0.31781146,101320.0,101310.0,0.0631]
[1750644728071,0.29930662,101320.0,101310.0,0.0631]
[1750644728279,0.31782243,101320.0,101310.0,0.0631]
[1750644728492,0.02776831,101320.0,101310.0,0.098804]
[1750644728697,0.02776831,101320.0,101310.0,0.099944]
[1750644729122,0.02776834,101320.0,101310.0,0.06424]
[1750644729963,0.66476863,101320.0,101310.0,0.0631]
[1750644730184,0.65782246,101320.0,101310.0,0.0631]
[1750644730955,0.63930662,101320.0,101310.0,0.0631]
[1750644731170,0.65783036,101320.0,101310.0,0.0631]
[1750644732435,0.66477747,101320.0,101310.0,0.0631]
[1750644733637,0.49830147,101320.0,101310.0,0.0631]
[1750644736834,0.49830929,101320.0,101310.0,0.0631]
[1750644737059,0.53205194,101320.0,101310.0,0.0631]
[1750644737285,0.55319929,101320.0,101310.0,0.001]
[1750644738150,0.55320292,101320.0,101310.0,0.001]
[1750644739032,0.5296012,101320.0,101310.0,0.001]
[1750644739663,0.52960028,101320.0,101310.0,0.001]
[1750644739880,0.52889528,101320.0,101310.0,0.001]
[1750644741028,0.55621466,101320.0,101310.0,0.06793]
[1750644741264,0.39517466,101320.0,101310.0,0.68658253]
[1750644741528,0.35853064,101320.0,101310.0,0.65078412]
[1750644741998,0.35853064,101320.0,101310.0,0.36073]
[1750644742231,0.35853064,101320.0,101310.0,0.65078412]
[1750644742232,0.01853064,101320.0,101310.0,0.65078412]
[1750644742466,0.369691,101330.0,101320.0,0.062]
[1750644742713,0.01852347,101330.0,101320.0,0.64608412]
[1750644742963,0.01852347,101330.0,101320.0,0.35603]
[1750644744114,0.01952347,101330.0,101320.0,0.3548]
[1750644744390,0.30957759,101330.0,101320.0,0.3548]
[1750644744575,0.3175116,101330.0,101320.0,0.3232]
[1750644745021,0.3175116,101330.0,101320.0,0.3532]
[1750644745238,0.6575116,101330.0,101320.0,0.3232]
[1750644745450,0.6584016,101330.0,101320.0,0.2928]
[1750644745684,0.66765778,101330.0,101320.0,0.2928]
[1750644746150,0.66765778,101330.0,101320.0,0.3241]
[1750644747212,0.66765778,101330.0,101320.0,0.0313]
[1750644747423,0.6584016,101330.0,101320.0,0.0313]
[1750644747638,0.66765673,101330.0,101320.0,0.0313]
[1750644748072,0.66765247,101330.0,101320.0,0.0313]
[1750644748747,0.66676247,101330.0,101320.0,0.0313]
[1750644749613,0.66765247,101330.0,101320.0,0.0313]
[1750644750054,0.66676247,101330.0,101320.0,0.0614]
[1750644750697,0.66676247,101330.0,101320.0,0.0313]
[1750644750890,0.69966078,101330.0,101310.0,0.3553]
[1750644751161,0.29005412,101320.0,101310.0,0.3553]
[1750644751373,0.31781945,101320.0,101310.0,0.3553]
[1750644751817,0.02776533,101320.0,101310.0,0.35653]
[1750644752691,0.65781945,101320.0,101310.0,0.3563]
[1750644753108,0.65781945,101320.0,101310.0,0.0635]
[1750644753504,0.68751345,101320.0,101310.0,0.0635]
[1750644753731,0.68751488,101320.0,101310.0,0.0635]
[1750644754651,0.34751488,101320.0,101310.0,0.0635]
[1750644755260,0.34751488,101320.0,101310.0,0.06473]
[1750644756672,0.34751549,101320.0,101310.0,0.06473]
[1750644757707,0.05746137,101320.0,101310.0,0.06473]
[1750644757917,0.34751549,101320.0,101310.0,0.06473]
[1750644759489,0.34751526,101320.0,101310.0,0.06473]
[1750644759711,0.34751526,101320.0,101310.0,0.0635]
[1750644762316,0.34751493,101320.0,101310.0,0.06473]
[1750644764549,0.05746081,101320.0,101310.0,0.06473]
[1750644765197,0.34751493,101320.0,101310.0,0.06473]
[1750644765402,0.34751385,101320.0,101310.0,0.06473]
[1750644765816,0.34751385,101320.0,101310.0,0.0635]
[1750644766430,0.68751385,101320.0,101310.0,0.0635]
[1750644766637,0.69445554,101320.0,101310.0,0.0635]
[1750644767759,0.85541554,101320.0,101310.0,0.0635]
[1750644768201,0.85541527,101320.0,101310.0,0.0635]
[1750644768405,0.84847384,101320.0,101310.0,0.0635]
[1750644768584,0.85541613,101320.0,101310.0,0.0635]
[1750644768832,0.85541612,101320.0,101310.0,0.0635]
[1750644771026,0.85541737,101320.0,101310.0,0.0635]
[1750644772449,0.56536325,101320.0,101310.0,0.0635]
[1750644772649,0.85541737,101320.0,101310.0,0.0635]
[1750644773073,0.85541737,101320.0,101310.0,0.06469]
[1750644773937,0.85542206,101320.0,101310.0,0.06469]
[1750644774221,0.85542206,101320.0,101310.0,0.0635]
[1750644775277,0.85631206,101320.0,101310.0,0.001]
[1750644776624,0.85631206,101320.0,101310.0,0.0339]
[1750644776829,0.85631539,101320.0,101310.0,0.0339]
[1750644777861,0.85631605,101320.0,101310.0,0.0339]
[1750644778075,0.85542605,101320.0,101310.0,0.0664]
[1750644778269,0.83691557,101320.0,101310.0,0.0664]
[1750644778473,0.82996914,101320.0,101310.0,0.0664]
[1750644778683,0.82070812,101320.0,101310.0,0.0664]
[1750644779287,0.85544599,101320.0,101310.0,0.0664]
[1750644779701,0.82070812,101320.0,101310.0,0.0664]
[1750644780105,0.83692446,101320.0,101310.0,0.0664]
[1750644780433,0.85545744,101320.0,101310.0,0.0664]
[1750644780564,0.83692446,101320.0,101310.0,0.0664]
[1750644780779,0.85545744,101320.0,101310.0,0.0664]
[1750644781645,0.85545919,101320.0,101310.0,0.0664]
[1750644782498,1.20152569,101320.0,101310.0,0.001]
[1750644782719,0.03229,101300.0,101280.0,0.0637]
[1750644782920,0.79186412,101290.0,101280.0,0.0324]
[1750644783137,0.6227778,101290.0,101270.0,0.0637]
[1750644783347,0.63005412,101280.0,101270.0,0.06489]
[1750644783553,0.66480519,101280.0,101270.0,0.06489]
[1750644784185,0.66485142,101280.0,101270.0,0.06489]
[1750644784426,0.66486376,101280.0,101270.0,0.06789]
[1750644784617,0.66486376,101280.0,101270.0,0.06489]
[1750644784618,0.65791108,101280.0,101270.0,0.06489]
[1750644784967,0.64864084,101280.0,101270.0,0.07389]
[1750644786029,0.63010035,101280.0,101270.0,0.07389]
[1750644786268,0.63010035,101280.0,101270.0,0.07089]
[1750644786619,0.66961467,101280.0,101270.0,0.07289]
[1750644787033,0.66961467,101280.0,101270.0,0.06689]
[1750644787243,0.66961467,101280.0,101270.0,0.06889]
[1750644789364,0.34004623,101280.0,101270.0,0.06889]
[1750644791936,0.63010035,101280.0,101270.0,0.06889]
[1750644792147,0.63010035,101280.0,101270.0,0.0677]
[1750644793347,0.63010035,101280.0,101270.0,0.0364]
[1750644793585,0.92015447,101280.0,101270.0,0.004]
[1750644793943,0.95345447,101280.0,101270.0,0.004]
[1750644794148,1.02425522,101280.0,101270.0,0.004]
[1750644794373,1.08816502,101280.0,101270.0,0.002]
[1750644794573,1.08816502,101280.0,101260.0,0.0316]
[1750644794798,0.45101412,101270.0,101260.0,0.0001]
[1750644796405,0.45101412,101270.0,101260.0,0.0011]
[1750644796817,0.45101412,101270.0,101260.0,0.0001]
[1750644797024,0.45101412,101270.0,101260.0,0.0031]
[1750644797870,0.79101412,101270.0,101260.0,0.0031]
[1750644798278,0.79101412,101270.0,101260.0,0.0051]
[1750644799362,0.79101412,101270.0,101260.0,0.0371]
[1750644799826,0.79101412,101270.0,101260.0,0.0341]
[1750644800255,0.80945451,101270.0,101260.0,0.0341]
[1750644800484,0.80945451,101270.0,101260.0,0.0011]
[1750644801484,0.80945456,101270.0,101260.0,0.0011]
[1750644802099,0.81867645,101270.0,101260.0,0.0011]
[1750644802606,0.84838945,101270.0,101260.0,0.0011]
[1750644804014,0.92178334,101270.0,101260.0,0.0011]
[1750644804243,0.91192335,101270.0,101260.0,0.0011]
[1750644804471,0.91192916,101270.0,101260.0,0.0011]
[1750644804697,0.29005412,101250.0,101240.0,0.09804132]
[1750644804919,0.58010824,101250.0,101240.0,0.09804132]
[1750644805103,0.45101412,101250.0,101240.0,0.09928132]
[1750644805373,0.48072912,101250.0,101240.0,0.09928132]
[1750644805581,0.77078324,101250.0,101240.0,0.09928132]
[1750644805807,0.48072912,101250.0,101240.0,0.09928132]
[1750644806297,0.31976912,101250.0,101240.0,0.10228132]
[1750644806535,0.31976912,101250.0,101240.0,0.0707]
[1750644806707,0.31976912,101250.0,101240.0,0.07194]
[1750644807187,0.31976912,101250.0,101240.0,0.009]
[1750644807188,0.96828383,101250.0,101240.0,0.009]
[1750644807412,1.04103814,101250.0,101240.0,0.009]
[1750644808042,1.06465182,101250.0,101240.0,0.007]
[1750644808636,1.07452748,101250.0,101240.0,0.007]
[1750644809048,1.07452803,101250.0,101240.0,0.004]
[1750644809245,1.06665237,101250.0,101240.0,0.004]
[1750644809658,1.07752813,101250.0,101240.0,0.004]
[1750644810071,1.07651692,101250.0,101240.0,0.004]
[1750644810488,1.11180978,101250.0,101240.0,0.004]
[1750644810902,6.05318833,101250.0,101240.0,0.004]
[1750644811118,6.11306487,101250.0,101240.0,0.004]
[1750644811314,6.13279195,101250.0,101240.0,0.004]
[1750644812002,6.12291541,101250.0,101240.0,0.004]
[1750644812209,0.35454085,101240.0,101210.0,0.03234]
[1750644812360,0.63005412,101220.0,101210.0,0.03234]
[1750644812775,0.63005412,101220.0,101210.0,0.0311]
[1750644812986,0.94983224,101220.0,101210.0,0.0311]
[1750644813386,0.94987842,101220.0,101210.0,0.0311]
[1750644813576,0.96832362,101220.0,101210.0,0.0311]
[1750644813771,0.96832362,101220.0,101210.0,0.0361]
[1750644814687,0.94987842,101220.0,101210.0,0.0361]
[1750644815087,0.94987842,101220.0,101210.0,0.0311]
[1750644815502,0.94987842,101220.0,101210.0,0.0625]
[1750644815710,0.99190142,101220.0,101210.0,0.0625]
[1750644816987,0.99880923,101220.0,101210.0,0.0625]
[1750644818676,0.99880381,101220.0,101210.0,0.0625]
[1750644821311,1.02100835,101220.0,101210.0,0.0625]
[1750644822288,1.00258521,101220.0,101210.0,0.0625]
[1750644822492,1.03218795,101220.0,101210.0,0.0625]
[1750644822695,1.03632786,101220.0,101210.0,0.0625]
[1750644822910,1.00258521,101220.0,101210.0,0.0625]
[1750644823472,1.03218795,101220.0,101210.0,0.0625]
[1750644823881,1.06674945,101220.0,101210.0,0.0625]
[1750644824402,1.22770945,101220.0,101210.0,0.0625]
[1750644826772,1.22772114,101220.0,101210.0,0.0625]
[1750644826980,1.22772113,101220.0,101210.0,0.0625]
[1750644828979,1.26722351,101220.0,101210.0,0.0625]
[1750644829201,1.26722351,101220.0,101210.0,0.001]
[1750644829651,1.26722685,101220.0,101210.0,0.001]
[1750644830532,0.68711861,101220.0,101210.0,0.062]
[1750644830735,1.26722685,101220.0,101210.0,0.062]
[1750644831365,0.68711861,101220.0,101210.0,0.062]
[1750644831612,1.26722685,101220.0,101210.0,0.062]
[1750644831837,1.02025273,101220.0,101210.0,0.0632]
[1750644832043,0.98075469,101220.0,101210.0,0.0632]
[1750644832261,0.11705783,101220.0,101210.0,0.0632]
[1750644832480,0.03980234,101220.0,101210.0,0.0632]
[1750644832687,0.37980355,101220.0,101210.0,0.0632]
[1750644833766,0.36363975,101220.0,101210.0,0.0632]
[1750644834624,0.37981791,101220.0,101210.0,0.0632]
[1750644835837,0.66987203,101220.0,101210.0,0.0632]
[1750644836254,0.69920666,101220.0,101210.0,0.0632]
[1750644836459,0.7288094,101220.0,101210.0,0.0632]
[1750644836686,0.74732341,101220.0,101210.0,0.0632]
[1750644837774,0.71772067,101220.0,101210.0,0.0632]
[1750644837988,1.00777479,101220.0,101210.0,0.0632]
[1750644838214,1.01886352,101220.0,101210.0,0.0632]
[1750644838419,1.07688073,101220.0,101210.0,0.0632]
[1750644838853,1.03737835,101220.0,101210.0,0.0632]
[1750644839509,1.07688073,101220.0,101210.0,0.0632]
[1750644839726,1.03737835,101220.0,101210.0,0.0632]
[1750644840555,1.03737835,101220.0,101210.0,0.062]
[1750644841009,1.05838651,101220.0,101210.0,0.001]
[1750644841217,1.07691706,101220.0,101210.0,0.001]
[1750644841919,0.49680882,101220.0,101210.0,0.065]
[1750644842154,0.95140056,101220.0,101210.0,0.065]
[1750644842390,0.39719807,101220.0,101210.0,0.065]
[1750644843506,0.32478344,101220.0,101210.0,0.065]
[1750644844338,0.66478344,101220.0,101210.0,0.065]
[1750644845158,0.65784994,101220.0,101210.0,0.065]
[1750644845378,0.66479944,101220.0,101210.0,0.065]
[1750644846476,0.35621477,101220.0,101210.0,0.065]
[1750644847976,0.64626889,101220.0,101210.0,0.065]
[1750644848810,0.01621464,101220.0,101210.0,0.065]
[1750644849229,0.01621361,101220.0,101210.0,0.065]
[1750644850828,0.86369412,101240.0,101230.0,0.0623]
[1750644851050,0.89843018,101240.0,101230.0,0.06396308]
[1750644851259,0.86871018,101240.0,101230.0,0.06396308]
[1750644852115,0.87371018,101240.0,101230.0,0.06396308]
[1750644853182,0.66979018,101240.0,101230.0,0.06396308]
[1750644853390,0.65126454,101240.0,101230.0,0.07035939]
[1750644853603,0.65126454,101240.0,101230.0,0.06396308]
[1750644854807,0.65125801,101240.0,101230.0,0.06396308]
[1750644855399,0.6419947,101240.0,101230.0,0.06396308]